[Event "14th SRB-ch Women 2020"]
[Site "Vrnjacka Banja"]
[Date "2020.12.12"]
[Round "8.1"]
[White "Velikic, Adela"]
[Black "Chelushkina, Irina"]
[Result "0-1"]
[ECO "E90"]
[WhiteElo "2278"]
[BlackElo "2224"]
[Annotator "NA"]
[PlyCount "168"]
[EventDate "2020.12.07"]
[EventType "tourn"]
[EventCountry "SRB"]
[SourceTitle "playchess.com"]
[Source "ChessBase"]
[SourceQuality "1"]
[TimeControl "40/5400+30:1800+30"]

1. e4 {[%emt 0:00:00]} c5 {[%emt 0:00:38]} 2. Nf3 {[%emt 0:00:00]} a6 {[%emt 0:00:04]} 3. c4 {[%emt 0:00:00]} d6 {[%emt 0:01:06]} 4. d4 {[%emt 0:00:00]} Nd7 {[%emt 0:00:54]} 5. d5 {[%emt 0:03:26]} g6 {[%emt 0:00:49]} 6. Nc3 {[%emt 0:02:07]} Bg7 {[%emt 0:00:05]} 7. Bd3 {[%emt 0:06:37]} Ngf6 {[%emt 0:03:06]} 8. h3 {[%emt 0:03:08]} O-O {[%emt 0:00:15]} 9. O-O {[%emt 0:00:26]} e5 {[%emt 0:00:26]} 10. a3 {[%emt 0:22:08]} Nh5 {[%emt 0:00:52]} 11. Rb1 {[%emt 0:08:37]} Nf4 {[%emt 0:00:34]} 12. Ne2 {[%emt 0:05:25]} Nxd3 {[%emt 0:06:59]} 13. Qxd3 {[%emt 0:00:05]} b5 {[%emt 0:00:02]} 14. b4 {[%emt 0:08:22]} cxb4 {[%emt 0:07:35]} 15. axb4 {[%emt 0:04:37]} bxc4 {[%emt 0:07:45]} 16. Qxc4 {[%emt 0:00:36]} Nb6 {[%emt 0:03:17]} 17. Qa2 {[%emt 0:05:50]} Bd7 {[%emt 0:06:01]} 18. Bg5 {[%emt 0:02:50]} f6 {[%emt 0:00:48]} 19. Be3 {[%emt 0:00:17]} Bb5 {[%emt 0:00:18]} 20. Rbc1 {[%emt 0:02:22]} Na4 {[%emt 0:00:53]} 21. Rfe1 {[%emt 0:05:51]} Qd7 {[%emt 0:01:39]} 22. Nc3 {[%emt 0:03:08]} Nxc3 {[%emt 0:00:44]} 23. Rxc3 {[%emt 0:01:03]} Rfc8 {[%emt 0:04:38]} 24. Rec1 {[%emt 0:00:42]} Rxc3 {[%emt 0:02:05]} 25. Rxc3 {[%emt 0:00:01]} Rc8 {[%emt 0:00:52]} 26. Qc2 {[%emt 0:00:39]} Rxc3 {[%emt 0:00:05]} 27. Qxc3 {[%emt 0:00:03]} Bf8 {[%emt 0:00:20]} 28. Nd2 {[%emt 0:10:06]} f5 {[%emt 0:06:41]} 29. exf5 {[%emt 0:04:05]} gxf5 {[%emt 0:00:24]} 30. Qc2 {[%emt 0:01:18]} Qf7 {[%emt 0:05:39]} 31. f4 {[%emt 0:01:03]} exf4 {[%emt 0:00:39]} 32. Bxf4 {[%emt 0:00:32]} Qxd5 {[%emt 0:00:26]} 33. Qc3 {[%emt 0:00:27]} h6 {[%emt 0:05:45]} 34. Qg3+ {[%emt 0:00:29]} Kh7 {[%emt 0:00:07]} 35. Kh2 {[%emt 0:00:19]} Bc6 {[%emt 0:06:51]} 36. Nf3 {[%emt 0:00:31]} Qg8 {[%emt 0:02:36]} 37. Qf2 {[%emt 0:00:25]} Qc4 {[%emt 0:08:19]} 38. Nh4 {[%emt 0:00:35]} Bd7 {[%emt 0:04:06]} 39. Qg3 {[%emt 0:00:22]} Qe6 {[%emt 0:00:18]} 40. Nf3 {[%emt 0:00:45]} Qf6 {[%emt 0:01:52]} 41. Qf2 {[%emt 0:03:53]} Bb5 {[%emt 0:09:36]} 42. Qb6 {[%emt 0:02:06]} Bf1 {[%emt 0:05:05]} 43. Kg1 {[%emt 0:06:41]} Bd3 {[%emt 0:04:46]} 44. Be5 {[%emt 0:08:21]} Qe7 {[%emt 0:01:34]} 45. Bc3 {[%emt 0:03:53]} Be4 {[%emt 0:03:28]} 46. Nd2 {[%emt 0:00:55]} Bb7 {[%emt 0:05:03]} 47. Qf2 {[%emt 0:02:16]} Qg5 {[%emt 0:02:48]} 48. Nf1 {[%emt 0:02:16]} h5 {[%emt 0:05:27]} 49. Bd2 {[%emt 0:02:49]} Qg6 {[%emt 0:00:05]} 50. Ng3 {[%emt 0:00:20]} Bc8 {[%emt 0:00:08]} 51. Bc3 {[%emt 0:00:28]} h4 {[%emt 0:07:40]} 52. Ne2 {[%emt 0:01:04]} Qg5 {[%emt 0:00:17]} 53. Nf4 {[%emt 0:01:10]} Qg3 {[%emt 0:02:51]} 54. Qa7+ {[%emt 0:00:51]} Kg8 {[%emt 0:00:18]} 55. Qd4 {[%emt 0:00:35]} Bg7 {[%emt 0:00:38]} 56. Qc4+ {[%emt 0:00:08]} Kh7 {[%emt 0:00:11]} 57. Ne2 {[%emt 0:00:52]} Qe3+ {[%emt 0:00:09]} 58. Kf1 {[%emt 0:00:28]} Bxc3 {[%emt 0:00:38]} 59. Qxc8 {[%emt 0:00:17]} Be5 {[%emt 0:01:02]} 60. Qxf5+ {[%emt 0:00:19]} Kh6 $11 {[%emt 0:00:24]} 61. Qf8+ {[%emt 0:00:32]} Kg6 {[%emt 0:00:35]} 62. Qe8+ {[%emt 0:00:40]} Kh6 {[%emt 0:00:30]} 63. Qe6+ {[%emt 0:00:18]} Kg7 {[%emt 0:00:38]} 64. Qg4+ {[%emt 0:01:31]} Kf7 {[%emt 0:00:10]} 65. Qxh4 {[%emt 0:00:00]} Qd2 {[%emt 0:00:13]} 66. Qh7+ {[%emt 0:00:18]} Ke6 {[%emt 0:00:07]} 67. Qe4 {[%emt 0:00:26]} d5 {[%emt 0:00:27]} 68. Qg6+ {[%emt 0:00:24]} Kd7 {[%emt 0:00:30]} 69. Qf7+ {[%emt 0:00:36]} Kd6 {[%emt 0:00:39]} 70. Qf8+ {[%emt 0:00:23]} Kd7 {[%emt 0:00:28]} 71. Qc5 {[%emt 0:00:38]} Qd3 {[%emt 0:01:05]} 72. h4 {[%emt 0:00:35]} Qb1+ {[%emt 0:00:24]} 73. Kf2 {[%emt 0:00:28]} Qe4 {[%emt 0:00:24]} 74. Qa7+ {[%emt 0:00:27]} Bc7 {[%emt 0:00:20]} 75. Qxa6 {[%emt 0:00:37]} Qxh4+ {[%emt 0:00:06]} 76. g3 {[%emt 0:00:20]} Qxb4 {[%emt 0:00:13]} 77. Qd3 {[%emt 0:00:16]} Qf8+ {[%emt 0:00:19]} 78. Kg2 {[%emt 0:00:14]} Qf7 {[%emt 0:00:32]} 79. Nc3 {[%emt 0:00:18]} Kd6 {[%emt 0:01:03]} 80. Nb5+ {[%emt 0:00:48]} Kd7 {[%emt 0:00:38]} 81. Nd4 {[%emt 0:00:08]} Kd8 {[%emt 0:01:12]} 82. Qb5 {[%emt 0:00:21]} Qg8 {[%emt 0:00:55]} 83. Qc6 {[%emt 0:00:32]} Qxg3+ {[%emt 0:00:09]} 84. Kf1 {[%emt 0:00:10]} Qf4+ {[%emt 0:00:10]} 0-1

[Event "14th SRB-ch Women 2020"]
[Site "Vrnjacka Banja"]
[Date "2020.12.12"]
[Round "8.2"]
[White "Drljevic, Ljilja"]
[Black "Eric, Jovana"]
[Result "0-1"]
[ECO "B27"]
[WhiteElo "2174"]
[BlackElo "2278"]
[Annotator "ChessBase"]
[PlyCount "52"]
[EventDate "2020.12.07"]
[EventType "tourn"]
[EventCountry "SRB"]
[SourceTitle "playchess.com"]
[Source "ChessBase"]
[SourceQuality "1"]
[TimeControl "40/5400+30:1800+30"]

1. e4 {[%emt 0:00:00]} c5 {[%emt 0:00:00]} 2. Nf3 {[%emt 0:00:00]} g6 {[%emt 0:00:00]} 3. c3 {[%emt 0:03:42]} d5 {[%emt 0:02:19]} 4. e5 {[%emt 0:01:01]} Nc6 {[%emt 0:00:49]} 5. Bb5 {[%emt 0:03:12]} Bd7 {[%emt 0:03:27]} 6. Bxc6 {[%emt 0:06:52]} Bxc6 {[%emt 0:00:30]} 7. d4 {[%emt 0:01:44]} cxd4 {[%emt 0:02:30]} 8. cxd4 {[%emt 0:00:16]} Bg7 {[%emt 0:01:24]} 9. h4 {[%emt 0:04:39]} Qd7 {[%emt 0:05:06]} 10. h5 {[%emt 0:03:21]} O-O-O {[%emt 0:03:16]} 11. h6 {[%emt 0:03:56]} Bf8 {[%emt 0:00:17]} 12. Nc3 {[%emt 0:02:40]} Kb8 {[%emt 0:03:14]} 13. Qd3 {[%emt 0:37:01]} f6 {[%emt 0:07:26]} 14. Bf4 {[%emt 0:11:35]} Ka8 {[%emt 0:04:02]} 15. b4 {[%emt 0:01:00]} Qe6 {[%emt 0:05:06]} 16. b5 {[%emt 0:01:38]} Be8 {[%emt 0:00:20]} 17. Na4 {[%emt 0:02:37]} g5 {[%emt 0:01:04]} 18. Bd2 {[%emt 0:09:53]} Nxh6 {[%emt 0:06:55]} 19. Qa3 {[%emt 0:02:17]} Bxb5 {[%emt 0:04:25]} 20. Ba5 {[%emt 0:01:11]} Rc8 {[%emt 0:03:16]} 21. Rb1 {[%emt 0:01:06]} Qc6 {[%emt 0:03:34]} 22. Nc3 {[%emt 0:00:41]} Ba6 {[%emt 0:01:51]} 23. Nd2 {[%emt 0:00:22]} fxe5 {[%emt 0:02:06]} 24. Nb3 {[%emt 0:00:39]} e6 {[%emt 0:01:57]} 25. Qa4 {[%emt 0:00:29]} b5 {[%emt 0:00:56]} 26. Rxh6 {[%emt 0:00:31]} bxa4 {[%emt 0:00:27]} 0-1

[Event "14th SRB-ch Women 2020"]
[Site "Vrnjacka Banja"]
[Date "2020.12.12"]
[Round "8.3"]
[White "Benderac, Ana"]
[Black "Injac, Teodora"]
[Result "1/2-1/2"]
[ECO "A01"]
[WhiteElo "2202"]
[BlackElo "2290"]
[Annotator "NA"]
[PlyCount "48"]
[EventDate "2020.12.07"]
[EventType "tourn"]
[EventCountry "SRB"]
[SourceTitle "playchess.com"]
[Source "ChessBase"]
[SourceQuality "1"]
[TimeControl "40/5400+30:1800+30"]

1. b3 {[%emt 0:00:00]} Nf6 {[%emt 0:02:25]} 2. Bb2 {[%emt 0:00:00]} g6 {[%emt 0:00:12]} 3. Bxf6 {[%emt 0:00:10]} exf6 {[%emt 0:00:05]} 4. c4 {[%emt 0:00:08]} d5 {[%emt 0:00:57]} 5. cxd5 {[%emt 0:00:23]} Qxd5 {[%emt 0:00:05]} 6. Nc3 {[%emt 0:00:13]} Qd8 {[%emt 0:03:44]} 7. g3 {[%emt 0:01:55]} Bg7 {[%emt 0:01:59]} 8. Bg2 {[%emt 0:00:42]} f5 {[%emt 0:01:07]} 9. e3 {[%emt 0:04:52]} O-O {[%emt 0:10:47]} 10. Nge2 {[%emt 0:00:52]} c5 {[%emt 0:04:20]} 11. Rc1 {[%emt 0:00:17]} Na6 {[%emt 0:01:57]} 12. O-O {[%emt 0:08:49]} Rb8 {[%emt 0:02:01]} 13. d4 {[%emt 0:04:09]} b6 {[%emt 0:08:23]} 14. Na4 {[%emt 0:13:32]} Bd7 {[%emt 0:08:22]} 15. dxc5 {[%emt 0:01:24]} Bxa4 {[%emt 0:06:39]} 16. bxa4 {[%emt 0:01:18]} Nxc5 {[%emt 0:07:08]} 17. a5 {[%emt 0:02:46]} Ne4 {[%emt 0:03:16]} 18. Bxe4 {[%emt 0:03:28]} fxe4 {[%emt 0:00:06]} 19. a6 {[%emt 0:00:15]} b5 {[%emt 0:12:30]} 20. Qxd8 {[%emt 0:09:23]} Rfxd8 {[%emt 0:00:41]} 21. Rc7 {[%emt 0:01:32]} Rd2 {[%emt 0:01:57]} 22. Nf4 {[%emt 0:00:11]} Rxa2 {[%emt 0:09:07]} 23. Rxa7 {[%emt 0:00:29]} Rb6 {[%emt 0:02:34]} 24. Rb1 {[%emt 0:00:43]} Raxa6 {[%emt 0:03:49]} 1/2-1/2

[Event "14th SRB-ch Women 2020"]
[Site "Vrnjacka Banja"]
[Date "2020.12.12"]
[Round "8.4"]
[White "Prudnikova, Svetlana"]
[Black "Gajcin, Marina"]
[Result "1/2-1/2"]
[ECO "B38"]
[WhiteElo "2181"]
[BlackElo "2239"]
[Annotator "NA"]
[PlyCount "75"]
[EventDate "2020.12.07"]
[EventType "tourn"]
[EventCountry "SRB"]
[SourceTitle "playchess.com"]
[Source "ChessBase"]
[SourceQuality "1"]
[TimeControl "40/5400+30:1800+30"]

1. Nf3 {[%emt 0:00:00]} c5 {[%emt 0:00:28]} 2. c4 {[%emt 0:00:00]} Nc6 {[%emt 0:00:41]} 3. d4 {[%emt 0:00:09]} cxd4 {[%emt 0:08:45]} 4. Nxd4 {[%emt 0:00:04]} g6 {[%emt 0:02:43]} 5. e4 {[%emt 0:00:24]} d6 {[%emt 0:00:33]} 6. Nc3 {[%emt 0:00:46]} Bg7 {[%emt 0:00:31]} 7. Be3 {[%emt 0:00:08]} Nf6 {[%emt 0:00:09]} 8. Be2 {[%emt 0:00:03]} O-O {[%emt 0:01:04]} 9. O-O {[%emt 0:00:28]} Bd7 {[%emt 0:00:11]} 10. Qd2 {[%emt 0:01:08]} Nxd4 {[%emt 0:00:42]} 11. Bxd4 {[%emt 0:00:06]} Bc6 {[%emt 0:00:04]} 12. f3 {[%emt 0:00:23]} a5 {[%emt 0:00:09]} 13. b3 {[%emt 0:02:45]} Nd7 {[%emt 0:00:08]} 14. Be3 {[%emt 0:00:58]} Nc5 {[%emt 0:00:42]} 15. Rab1 {[%emt 0:07:28]} e6 {[%emt 0:01:55]} 16. Rbd1 {[%emt 0:05:03]} Be5 {[%emt 0:00:32]} 17. Bd4 {[%emt 0:01:06]} f5 {[%emt 0:40:54]} 18. exf5 {[%emt 0:15:15]} gxf5 {[%emt 0:02:16]} 19. Bxe5 {[%emt 0:08:04]} dxe5 {[%emt 0:00:14]} 20. Qe3 {[%emt 0:01:10]} Nd7 {[%emt 0:01:29]} 21. Rd6 {[%emt 0:01:57]} Rf6 {[%emt 0:04:47]} 22. Rfd1 {[%emt 0:01:57]} Rg6 {[%emt 0:03:32]} 23. c5 {[%emt 0:06:26]} Qe7 {[%emt 0:07:38]} 24. Bb5 {[%emt 0:13:49]} f4 {[%emt 0:08:34]} 25. Qf2 {[%emt 0:01:24]} Bxb5 {[%emt 0:00:14]} 26. Nxb5 {[%emt 0:00:01]} Nf6 {[%emt 0:00:13]} 27. Nc3 {[%emt 0:01:32]} Kh8 {[%emt 0:00:35]} 28. Re1 {[%emt 0:17:02]} Rag8 {[%emt 0:01:29]} 29. Rxe5 {[%emt 0:01:57]} Ne8 {[%emt 0:00:52]} 30. Rd2 {[%emt 0:08:03]} Qg7 {[%emt 0:00:17]} 31. Rde2 {[%emt 0:00:16]} Nc7 {[%emt 0:05:24]} 32. Kf1 {[%emt 0:01:05]} Rd8 {[%emt 0:00:40]} 33. Qe1 {[%emt 0:01:29]} Rd3 {[%emt 0:01:05]} 34. Rf2 {[%emt 0:03:01]} Rh6 {[%emt 0:04:15]} 35. Kg1 {[%emt 0:01:20]} Rg6 {[%emt 0:01:21]} 36. Kf1 {[%emt 0:00:10]} Rh6 {[%emt 0:00:28]} 37. Kg1 {[%emt 0:00:12]} Rg6 {[%emt 0:00:12]} 38. Kf1 {[%emt 0:00:12]} 1/2-1/2

[Event "14th SRB-ch Women 2020"]
[Site "Vrnjacka Banja"]
[Date "2020.12.12"]
[Round "8.5"]
[White "Srdanovic, Jovana"]
[Black "Rapport, Jovana"]
[Result "1/2-1/2"]
[ECO "A41"]
[WhiteElo "2149"]
[BlackElo "2308"]
[Annotator "NA"]
[PlyCount "127"]
[EventDate "2020.12.07"]
[EventType "tourn"]
[EventCountry "SRB"]
[SourceTitle "playchess.com"]
[Source "ChessBase"]
[SourceQuality "1"]
[TimeControl "40/5400+30:1800+30"]

1. d4 {[%emt 0:00:00]} d6 {[%emt 0:00:00]} 2. c4 {[%emt 0:00:00]} g6 {[%emt 0:00:00]} 3. Nc3 {[%emt 0:00:00]} Bg7 {[%emt 0:00:00]} 4. Nf3 {[%emt 0:00:06]} e5 {[%emt 0:01:19]} 5. d5 {[%emt 0:10:01]} a5 {[%emt 0:05:30]} 6. e4 {[%emt 0:00:34]} Na6 {[%emt 0:00:21]} 7. Bd3 {[%emt 0:00:48]} Nc5 {[%emt 0:00:05]} 8. Bc2 {[%emt 0:00:04]} Bd7 {[%emt 0:06:22]} 9. Be3 {[%emt 0:04:29]} Nh6 {[%emt 0:00:20]} 10. h3 {[%emt 0:03:37]} f6 {[%emt 0:02:35]} 11. Qc1 {[%emt 0:08:43]} Nf7 {[%emt 0:01:52]} 12. Qd2 {[%emt 0:18:40]} Qe7 {[%emt 0:03:57]} 13. Rb1 {[%emt 0:10:39]} f5 {[%emt 0:04:32]} 14. Qe2 {[%emt 0:07:29]} f4 {[%emt 0:06:34]} 15. Bxc5 {[%emt 0:01:14]} dxc5 {[%emt 0:00:05]} 16. Ba4 {[%emt 0:00:06]} Bxa4 {[%emt 0:04:55]} 17. Nxa4 {[%emt 0:00:05]} Bf8 {[%emt 0:00:03]} 18. b3 {[%emt 0:02:37]} g5 {[%emt 0:01:59]} 19. Kd1 {[%emt 0:01:51]} h5 {[%emt 0:02:31]} 20. Ne1 {[%emt 0:03:18]} Qd7 {[%emt 0:04:45]} 21. Nd3 {[%emt 0:00:17]} b6 {[%emt 0:00:05]} 22. Kc2 {[%emt 0:00:11]} Bd6 {[%emt 0:00:37]} 23. f3 {[%emt 0:04:01]} O-O-O {[%emt 0:04:05]} 24. Nf2 {[%emt 0:02:09]} Nh6 {[%emt 0:02:21]} 25. Nc3 {[%emt 0:01:19]} Rdg8 {[%emt 0:00:09]} 26. Rbg1 {[%emt 0:04:54]} Rg6 {[%emt 0:03:26]} 27. Nb5 {[%emt 0:02:17]} Kb7 {[%emt 0:02:27]} 28. a4 {[%emt 0:01:28]} Rhg8 {[%emt 0:07:19]} 29. Nxd6+ {[%emt 0:00:19]} cxd6 {[%emt 0:00:11]} 30. g4 {[%emt 0:00:14]} fxg3 {[%emt 0:03:11]} 31. Rxg3 {[%emt 0:00:05]} h4 {[%emt 0:00:03]} 32. Rg2 {[%emt 0:02:28]} Rf8 {[%emt 0:06:43]} 33. Nd3 {[%emt 0:00:26]} Rf7 {[%emt 0:04:35]} 34. Qe3 {[%emt 0:00:22]} Rfg7 {[%emt 0:00:11]} 35. Nf2 {[%emt 0:01:34]} Qf7 {[%emt 0:04:40]} 36. Nd3 {[%emt 0:02:10]} Ng8 {[%emt 0:02:45]} 37. Rhg1 {[%emt 0:00:11]} Qe7 {[%emt 0:00:23]} 38. Kb2 {[%emt 0:01:59]} Ka6 {[%emt 0:00:36]} 39. Qc1 {[%emt 0:01:05]} Qf6 {[%emt 0:06:40]} 40. Qe3 {[%emt 0:00:23]} Qd8 {[%emt 0:00:09]} 41. Qc1 {[%emt 0:31:56]} Nh6 {[%emt 0:34:43]} 42. Qe3 {[%emt 0:01:51]} Qg8 {[%emt 0:02:06]} 43. Qd2 {[%emt 0:04:00]} Nf7 {[%emt 0:02:47]} 44. Rh2 {[%emt 0:00:00]} Rf6 {[%emt 0:00:00]} 45. Qe3 {[%emt 0:00:00]} Qh8 {[%emt 0:00:00]} 46. Rhg2 {[%emt 0:00:00]} Qh5 {[%emt 0:00:00]} 47. Rg4 {[%emt 0:00:00]} Qh8 {[%emt 0:00:00]} 48. R4g2 {[%emt 0:00:00]} Qf8 {[%emt 0:00:00]} 49. Rf1 {[%emt 0:00:00]} Rg8 {[%emt 0:00:00]} 50. Kc3 {[%emt 0:00:00]} Qc8 {[%emt 0:00:00]} 51. Rh1 {[%emt 0:00:00]} Rf8 {[%emt 0:00:00]} 52. Rf2 {[%emt 0:00:00]} Qd8 {[%emt 0:00:00]} 53. Rg1 {[%emt 0:00:00]} Qd7 {[%emt 0:00:00]} 54. Rh1 {[%emt 0:00:00]} Rg6 {[%emt 0:00:00]} 55. Rg2 {[%emt 0:00:00]} Qe7 {[%emt 0:00:00]} 56. Rhg1 {[%emt 0:00:00]} Rf6 {[%emt 0:00:00]} 57. Rf2 {[%emt 0:00:00]} Qd7 {[%emt 0:00:00]} 58. Rh1 {[%emt 0:00:00]} Qc8 {[%emt 0:00:00]} 59. Kc2 {[%emt 0:00:00]} Rg8 {[%emt 0:00:00]} 60. Rg2 {[%emt 0:00:00]} Rfg6 {[%emt 0:00:00]} 61. Nf2 {[%emt 0:00:00]} Rf6 {[%emt 0:00:00]} 62. Nd3 {[%emt 0:00:00]} Qf8 {[%emt 0:00:31]} 63. Rf1 {[%emt 0:00:00]} Rg7 {[%emt 0:00:44]} 64. Kc3 {[%emt 0:00:00]} 1/2-1/2

[Event "14th SRB-ch Women 2020"]
[Site "Vrnjacka Banja"]
[Date "2020.12.13"]
[Round "9.1"]
[White "Rapport, Jovana"]
[Black "Velikic, Adela"]
[Result "0-1"]
[ECO "A11"]
[WhiteElo "2308"]
[BlackElo "2278"]
[Annotator "ChessBase"]
[PlyCount "108"]
[EventDate "2020.12.07"]
[EventType "tourn"]
[EventCountry "SRB"]
[SourceTitle "playchess.com"]
[Source "ChessBase"]
[SourceQuality "1"]
[TimeControl "40/5400+30:1800+30"]

1. Nf3 {[%emt 0:00:00]} d5 {[%emt 0:00:00]} 2. g3 {[%emt 0:00:00]} Nf6 {[%emt 0:00:02]} 3. Bg2 {[%emt 0:00:21]} c6 {[%emt 0:00:14]} 4. O-O {[%emt 0:03:27]} Bf5 {[%emt 0:00:15]} 5. c4 {[%emt 0:00:05]} e6 {[%emt 0:10:17]} 6. cxd5 {[%emt 0:00:38]} exd5 {[%emt 0:06:54]} 7. d3 {[%emt 0:01:10]} Be7 {[%emt 0:03:40]} 8. Nc3 {[%emt 0:05:28]} O-O {[%emt 0:02:18]} 9. Nd4 {[%emt 0:00:24]} Bg6 {[%emt 0:05:56]} 10. e4 {[%emt 0:00:10]} Na6 {[%emt 0:07:49]} 11. e5 {[%emt 0:00:46]} Nd7 {[%emt 0:04:44]} 12. f4 {[%emt 0:00:30]} Bc5 {[%emt 0:04:11]} 13. Be3 {[%emt 0:02:08]} Qe7 {[%emt 0:11:32]} 14. Qe2 {[%emt 0:50:57]} Nb4 {[%emt 0:20:36]} 15. Rad1 {[%emt 0:04:26]} Nxe5 {[%emt 0:02:35]} 16. a3 {[%emt 0:10:25]} Bxd3 {[%emt 0:09:25]} 17. Rxd3 {[%emt 0:05:55]} Nexd3 {[%emt 0:00:10]} 18. axb4 {[%emt 0:00:39]} Nxb4 {[%emt 0:02:03]} 19. Qd2 {[%emt 0:00:19]} Rfe8 {[%emt 0:03:02]} 20. Bf2 {[%emt 0:00:08]} Qf6 {[%emt 0:01:20]} 21. g4 {[%emt 0:00:29]} Qg6 {[%emt 0:01:23]} 22. Na4 {[%emt 0:02:59]} Bxd4 {[%emt 0:00:53]} 23. Qxd4 {[%emt 0:00:45]} a5 {[%emt 0:00:45]} 24. f5 {[%emt 0:00:32]} Qd6 {[%emt 0:00:42]} 25. Bg3 {[%emt 0:03:15]} Qf6 {[%emt 0:00:39]} 26. Qxf6 {[%emt 0:00:29]} gxf6 {[%emt 0:00:01]} 27. Nb6 {[%emt 0:00:01]} Rad8 {[%emt 0:01:06]} 28. Bc7 {[%emt 0:00:24]} Nd3 {[%emt 0:00:39]} 29. Ra1 {[%emt 0:03:30]} Nxb2 {[%emt 0:00:30]} 30. Bxd8 {[%emt 0:00:05]} Rxd8 {[%emt 0:00:11]} 31. Rxa5 {[%emt 0:00:07]} d4 {[%emt 0:00:36]} 32. Ra2 {[%emt 0:03:05]} Nd3 {[%emt 0:00:28]} 33. h3 {[%emt 0:00:19]} Ne5 {[%emt 0:00:40]} 34. Kf2 {[%emt 0:00:14]} Kg7 {[%emt 0:00:32]} 35. Bf1 {[%emt 0:00:27]} h5 {[%emt 0:00:40]} 36. gxh5 {[%emt 0:00:46]} Kh6 {[%emt 0:00:17]} 37. Nc4 {[%emt 0:02:18]} Kxh5 {[%emt 0:00:39]} 38. Ra7 {[%emt 0:00:15]} d3 {[%emt 0:00:33]} 39. Nxe5 {[%emt 0:00:07]} fxe5 {[%emt 0:00:01]} 40. Rxb7 {[%emt 0:00:13]} Kg5 {[%emt 0:00:54]} 41. Rb1 {[%emt 0:12:30]} Kf4 {[%emt 0:06:21]} 42. Rc1 {[%emt 0:12:06]} e4 {[%emt 0:14:52]} 43. Rxc6 {[%emt 0:00:13]} d2 {[%emt 0:03:09]} 44. Be2 {[%emt 0:00:26]} e3+ {[%emt 0:05:02]} 45. Kg2 {[%emt 0:00:14]} d1=Q {[%emt 0:00:12]} 46. Bxd1 {[%emt 0:00:07]} Rd2+ {[%emt 0:00:16]} 47. Be2 {[%emt 0:02:33]} Rxe2+ {[%emt 0:00:06]} 48. Kf1 {[%emt 0:00:02]} Ra2 {[%emt 0:02:33]} 49. Rc1 {[%emt 0:02:01]} Kf3 {[%emt 0:00:30]} 50. Kg1 {[%emt 0:00:03]} Rg2+ {[%emt 0:00:45]} 51. Kh1 {[%emt 0:00:27]} Rd2 {[%emt 0:00:29]} 52. Kg1 {[%emt 0:01:49]} Rd3 {[%emt 0:00:24]} 53. Rf1+ {[%emt 0:01:33]} Kg3 {[%emt 0:00:31]} 54. Re1 {[%emt 0:00:09]} e2 {[%emt 0:00:36]} 0-1

[Event "14th SRB-ch Women 2020"]
[Site "Vrnjacka Banja"]
[Date "2020.12.13"]
[Round "9.3"]
[White "Injac, Teodora"]
[Black "Prudnikova, Svetlana"]
[Result "1/2-1/2"]
[ECO "A84"]
[WhiteElo "2290"]
[BlackElo "2181"]
[Annotator "ChessBase"]
[PlyCount "83"]
[EventDate "2020.12.07"]
[EventType "tourn"]
[EventCountry "SRB"]
[SourceTitle "playchess.com"]
[Source "ChessBase"]
[SourceQuality "1"]
[TimeControl "40/5400+30:1800+30"]

1. d4 {[%emt 0:00:00]} d5 {[%emt 0:00:00]} 2. c4 {[%emt 0:00:18]} c6 {[%emt 0:00:00]} 3. Nf3 {[%emt 0:00:58]} e6 {[%emt 0:00:20]} 4. e3 {[%emt 0:02:15]} f5 {[%emt 0:00:22]} 5. Nc3 {[%emt 0:03:17]} Nf6 {[%emt 0:00:41]} 6. Be2 {[%emt 0:01:56]} Bd6 {[%emt 0:04:30]} 7. Ne5 {[%emt 0:05:22]} Nbd7 {[%emt 0:17:53]} 8. f4 {[%emt 0:03:54]} Ne4 {[%emt 0:03:13]} 9. Nxe4 {[%emt 0:02:28]} fxe4 {[%emt 0:00:45]} 10. O-O {[%emt 0:01:47]} O-O {[%emt 0:00:25]} 11. Bd2 {[%emt 0:07:10]} Nxe5 {[%emt 0:21:23]} 12. dxe5 {[%emt 1:06:35]} Be7 {[%emt 0:46:28]} 13. Bc3 {[%emt 0:00:00]} Kh8 {[%emt 0:00:00]} 14. g4 {[%emt 0:00:00]} Bc5 {[%emt 0:00:00]} 15. Bd4 {[%emt 0:00:00]} Qb6 {[%emt 0:00:00]} 16. cxd5 {[%emt 0:00:00]} cxd5 {[%emt 0:00:00]} 17. Rc1 {[%emt 0:00:00]} Bxd4 {[%emt 0:00:00]} 18. Qxd4 {[%emt 0:00:00]} Qxd4 {[%emt 0:00:00]} 19. exd4 {[%emt 0:00:00]} Rf7 {[%emt 0:00:00]} 20. Kg2 {[%emt 0:00:00]} Kg8 {[%emt 0:00:00]} 21. h4 {[%emt 0:00:00]} g6 {[%emt 0:00:00]} 22. Kg3 {[%emt 0:00:00]} Bd7 {[%emt 0:00:00]} 23. h5 {[%emt 0:00:00]} gxh5 {[%emt 0:00:00]} 24. g5 {[%emt 0:00:00]} h6 {[%emt 0:00:00]} 25. Bxh5 {[%emt 0:00:00]} Rg7 {[%emt 0:00:00]} 26. Bg4 {[%emt 0:00:00]} hxg5 {[%emt 0:00:41]} 27. fxg5 {[%emt 0:00:00]} Rxg5 {[%emt 0:02:23]} 28. Kh4 {[%emt 0:00:00]} Rg7 {[%emt 0:00:13]} 29. Rc7 {[%emt 0:00:00]} Bc6 {[%emt 0:02:07]} 30. Bxe6+ {[%emt 0:00:00]} Kh7 {[%emt 0:00:02]} 31. Rxg7+ {[%emt 0:00:58]} Kxg7 {[%emt 0:00:01]} 32. Rg1+ {[%emt 0:01:33]} Kh6 {[%emt 0:00:22]} 33. Bf5 {[%emt 0:05:31]} Rf8 {[%emt 0:00:02]} 34. Rg6+ {[%emt 0:00:20]} Kh7 {[%emt 0:00:01]} 35. Kg5 {[%emt 0:01:13]} Rg8 {[%emt 0:01:27]} 36. Rxg8+ {[%emt 0:01:06]} Kxg8 {[%emt 0:00:01]} 37. Kf4 {[%emt 0:01:01]} Kf7 {[%emt 0:00:16]} 38. Bg4 {[%emt 0:00:31]} Ke7 {[%emt 0:00:19]} 39. Be2 {[%emt 0:00:24]} Bd7 {[%emt 0:00:29]} 40. Bd1 {[%emt 0:00:36]} Bc6 {[%emt 0:00:23]} 41. Be2 {[%emt 0:30:37]} Bd7 {[%emt 0:30:15]} 42. Bd1 {[%emt 0:00:00]} 1/2-1/2